bitfinex/quotes_SOLUSD_20220311
["timestamp","ask_amount","ask_price","bid_price","bid_amount"]
[1646971196418,24.574,81.959,81.924,9.8315512]
[1646971196822,24.574,81.959,81.911,9.8315512]
[1646971197217,6.0,81.958,81.911,9.8315512]
[1646971198220,6.0,81.958,81.92,3.6601]
[1646971199019,24.574,81.959,81.92,3.6601]
[1646971199318,6.0,81.958,81.921,9.82387066]
[1646971199520,6.0,81.958,81.92,3.6601]
[1646971199718,6.0,81.958,81.91,3.6605]
[1646971199919,6.0,81.958,81.911,9.82521633]
[1646971201821,6.0,81.958,81.92,3.6602]
[1646971202024,24.574,81.959,81.92,3.6602]
[1646971202220,24.574,81.959,81.912,73.35]
[1646971202421,24.574,81.959,81.913,4.58751718]
[1646971202720,24.574,81.959,81.914,6.0]
[1646971203324,14.54,81.96,81.94,3.659]
[1646971203521,18.2946,82.0,81.92,73.35]
[1646971203522,14.54,81.98,81.92,73.35]
[1646971203721,14.54,81.98,81.922,5.53091812]
[1646971203922,14.54,81.98,81.923,6.0]
[1646971204324,14.54,81.98,81.95,3.6586]
[1646971205327,14.54,82.0,81.951,6.0]
[1646971205526,23.3644,81.999,81.951,6.0]
[1646971205928,23.3644,81.999,81.949,6.0]
[1646971206327,23.3644,81.999,81.97,3.6577]
[1646971206525,23.3644,81.999,81.949,6.0]
[1646971206725,23.3644,81.999,81.967,6.0]
[1646971206925,23.3644,81.999,81.968,6.0]
[1646971207526,23.3644,81.999,81.98,1.8287]
[1646971207951,23.3644,81.999,81.981,6.0]
[1646971208150,14.54,82.0,81.981,6.0]
[1646971210254,14.54,82.0,81.98,1.8287]
[1646971212361,14.54,82.0,81.95,24.6584]
[1646971212562,24.9424,81.999,81.95,24.6584]
[1646971212963,6.0,81.998,81.95,24.6584]
[1646971213161,24.9424,81.999,81.95,24.6584]
[1646971213364,6.0,81.998,81.95,24.6584]
[1646971213561,24.9424,81.999,81.95,24.6584]
[1646971213765,24.9424,81.999,81.951,9.78085016]
[1646971213961,6.0,81.998,81.951,9.78085016]
[1646971214263,24.9424,81.999,81.951,9.78085016]
[1646971214563,6.0,81.998,81.952,6.0]
[1646971214761,24.9424,81.999,81.951,6.0]
[1646971214961,6.0,81.998,81.951,6.0]
[1646971215161,24.9424,81.999,81.951,6.0]
[1646971215361,24.9424,81.999,81.952,9.77707352]
[1646971215562,24.9424,81.999,81.953,6.0]
[1646971216364,24.9424,81.999,81.951,6.0]
[1646971218064,24.9424,81.999,81.95,24.6584]
[1646971218464,24.9424,81.999,81.925,12.73637668]
[1646971218465,6.0,81.998,81.925,12.73637668]
[1646971218665,6.0,81.998,81.926,6.0]
[1646971218866,6.0,81.998,81.907,5.86230321]
[1646971218867,6.0,81.998,81.925,6.0]
[1646971219064,6.0,81.998,81.927,9.77804963]
[1646971219264,6.099,81.997,81.927,9.77804963]
[1646971219465,6.0,81.996,81.926,9.77804963]
[1646971219665,6.099,81.995,81.926,9.77804963]
[1646971219867,6.0,81.994,81.926,9.77804963]
[1646971220067,14.54,81.98,81.926,9.77804963]
[1646971220268,30.2809,81.979,81.926,9.77804963]
[1646971220866,24.2809,81.979,81.926,9.77804963]
[1646971221570,6.0,81.978,81.926,9.77804963]
[1646971221769,65.34312556,81.977,81.926,9.77804963]
[1646971221969,6.0,81.976,81.926,9.77804963]
[1646971222170,65.34312556,81.977,81.926,9.77804963]
[1646971222371,6.0,81.976,81.926,9.77804963]
[1646971223570,6.0,81.976,81.911,9.77804963]
[1646971223973,6.0,81.976,81.907,9.77804963]
[1646971224172,6.0,81.976,81.908,6.0]
[1646971224371,6.0,81.976,81.907,9.77804963]
[1646971224572,6.0,81.976,81.908,6.0]
[1646971225173,6.0,81.976,81.909,9.77804963]
[1646971225375,6.101,81.975,81.909,9.77804963]
[1646971225573,14.54,81.96,81.907,9.77804963]
[1646971225772,30.589,81.959,81.907,9.77804963]
[1646971225972,30.589,81.959,81.903,9.77804963]
[1646971226577,6.102,81.958,81.903,9.77804963]
[1646971226774,6.0,81.957,81.903,9.77804963]
[1646971226975,6.102,81.956,81.903,9.77804963]
[1646971227175,6.0,81.955,81.903,9.77804963]
[1646971227375,14.54,81.94,81.903,9.77804963]
[1646971227676,60.29401088,81.939,81.903,9.77804963]
[1646971228475,60.29401088,81.939,81.874,16.02817039]
[1646971228676,85.07801088,81.939,81.874,16.02817039]
[1646971228875,85.07801088,81.939,81.877,18.83632533]
[1646971229373,85.07801088,81.939,81.878,9.79184576]
[1646971229576,85.07801088,81.939,81.879,6.0]
[1646971229774,85.07801088,81.939,81.879,9.04447957]
[1646971230176,85.07801088,81.939,81.88,9.79184576]
[1646971230379,6.0,81.938,81.88,9.79184576]
[1646971230578,6.0,81.937,81.88,9.79184576]
[1646971230876,85.07801088,81.939,81.88,12.83632533]
[1646971231277,85.07801088,81.939,81.881,15.79184576]
[1646971231479,6.0,81.938,81.881,15.79184576]
[1646971231681,6.0,81.938,81.882,9.79184576]
[1646971231880,6.0,81.938,81.883,6.0]
[1646971232577,6.0,81.938,81.884,9.79184576]
[1646971232978,6.0,81.938,81.884,3.04447957]
[1646971233177,6.0,81.938,81.885,3.04447957]
[1646971233378,6.0,81.938,81.885,12.83632533]
[1646971233677,6.0,81.938,81.886,9.79184576]
[1646971234478,24.784,81.939,81.887,32.11589364]
[1646971234884,24.784,81.939,81.888,38.11589364]
[1646971235180,24.784,81.939,81.889,3.04447957]
[1646971235382,24.784,81.939,81.89,6.0]
[1646971235580,24.784,81.939,81.89,35.07141407]
[1646971235782,24.784,81.939,81.891,12.83632533]
[1646971235985,24.784,81.939,81.892,6.0]
[1646971236182,24.784,81.939,81.892,12.83632533]
[1646971236381,24.784,81.939,81.893,3.04447957]
[1646971236684,56.57164013,81.938,81.893,12.83632533]
[1646971236884,56.57164013,81.938,81.894,6.0]
[1646971237082,56.57164013,81.938,81.894,18.83632533]
[1646971237283,56.57164013,81.938,81.894,12.83632533]
[1646971237483,6.0,81.937,81.895,9.79184576]
[1646971237685,13.02,81.937,81.895,9.79184576]
[1646971237891,13.02,81.937,81.885,9.79184576]
[1646971238085,18.3102,81.93,81.885,9.79184576]
[1646971238286,14.54,81.92,81.885,9.79184576]
[1646971238487,6.0,81.919,81.885,9.79184576]
[1646971238686,6.0,81.919,81.876,114.4]
[1646971238887,52.99197498,81.909,81.876,114.4]
[1646971239086,14.54,81.9,81.876,114.4]
[1646971239285,6.0,81.899,81.849,16.00672835]
[1646971239588,6.0,81.899,81.83,29.07141407]
[1646971239787,47.8045,81.898,81.83,29.07141407]
[1646971239985,6.0,81.897,81.831,3.04447957]
[1646971240485,50.01738006,81.896,81.832,54.29250917]
[1646971240789,6.0,81.895,81.832,25.2210951]
[1646971240985,14.54,81.88,81.833,29.07141407]
[1646971241185,32.8616,81.88,81.833,29.07141407]
[1646971241388,32.8616,81.88,81.833,32.11589364]
[1646971241609,51.21173334,81.879,81.834,3.04447957]
[1646971241986,6.0,81.878,81.834,3.04447957]
[1646971242189,51.21173334,81.879,81.834,3.04447957]
[1646971243188,51.21173334,81.879,81.84,1.8319]
[1646971243389,14.54,81.88,81.834,32.11589364]
[1646971243588,14.54,81.88,81.841,32.11589364]
[1646971243792,14.54,81.9,81.842,6.0]
[1646971243992,14.54,81.9,81.842,75.02120096]
[1646971244190,14.54,81.9,81.843,69.02120096]
[1646971244390,50.72934758,81.897,81.844,6.0]
[1646971244593,50.72934758,81.897,81.844,75.02120096]
[1646971244797,14.54,81.9,81.846,4.78733978]
[1646971244993,60.69413772,93.867,81.847,6.0]
[1646971244994,14.54,81.92,81.847,6.0]
[1646971245195,47.3819,81.927,81.848,73.35]
[1646971245395,47.3819,81.927,81.849,6.0]
[1646971245796,64.19102161,81.926,81.86,7.3256]
[1646971245996,6.0,81.925,81.861,6.0]
[1646971246197,14.54,81.92,81.861,9.04447957]
[1646971246396,12.105,81.919,81.862,3.04447957]
[1646971246597,12.105,81.919,81.863,6.0]
[1646971247001,12.105,81.919,81.862,3.04447957]
[1646971249623,12.105,81.919,81.863,114.4]
[1646971250626,6.0,81.919,81.863,114.4]
[1646971250824,6.0,81.919,81.84,3.04447957]
[1646971251026,6.106,81.918,81.84,3.04447957]
[1646971251226,6.0,81.917,81.84,3.04447957]
[1646971251624,24.3108,81.916,81.84,3.04447957]
[1646971251923,6.0,81.915,81.84,10.37217957]
[1646971253327,6.0,81.915,81.85,7.3267]
[1646971253524,6.0,81.915,81.841,29.07141407]
[1646971253725,6.0,81.915,81.851,32.11589364]
[1646971254124,6.0,81.915,81.852,3.04447957]
[1646971254325,6.0,81.915,81.852,32.11589364]
[1646971254625,6.0,81.915,81.852,29.07141407]
[1646971254826,6.0,81.915,81.853,3.04447957]
[1646971255426,6.106,81.914,81.843,3.04447957]
[1646971255626,14.54,81.9,81.843,3.04447957]
[1646971255829,52.74826991,81.899,81.843,3.04447957]
[1646971256632,52.74826991,81.899,81.85,10.9893]
[1646971259136,46.74826991,81.899,81.85,10.9893]
[1646971259738,46.74826991,81.899,81.843,3.04447957]
[1646971260339,6.0,81.898,81.843,3.04447957]
[1646971260840,6.0,81.898,81.85,10.9896]
[1646971261641,46.74826991,81.899,81.85,10.9896]
[1646971261843,6.0,81.898,81.85,10.9896]
[1646971262340,46.74826991,81.899,81.85,10.9896]
[1646971263742,6.0,81.898,81.85,10.9896]
[1646971264341,6.0,81.898,81.846,114.4]
[1646971264342,6.106,81.897,81.846,114.4]
[1646971264541,6.0,81.896,81.81,114.4]
[1646971264743,6.107,81.895,81.81,114.4]
[1646971264943,14.54,81.88,81.81,114.4]
[1646971265146,48.41096632,81.879,81.81,114.4]
[1646971265343,6.0,81.878,81.82,10.9933]
[1646971265748,6.0,81.878,81.81,114.4]
[1646971265949,6.0,81.878,81.816,6.0]
[1646971266348,6.0,81.878,81.83,14.6559]
[1646971267248,6.0,81.878,81.815,3.02633698]
[1646971267449,24.9199,81.877,81.82,14.6575]
[1646971267651,6.0,81.876,81.815,3.02633698]
[1646971267870,6.0,81.876,81.81,48.8569]
[1646971268451,18.3242,81.87,81.82,14.6591]
[1646971268652,6.0,81.869,81.82,14.6591]
[1646971268849,6.0,81.869,81.817,2.40620135]
[1646971269650,6.0,81.869,81.83,14.6574]
[1646971271053,6.0,81.869,81.82,17.34046047]
[1646971271254,6.0,81.869,81.82,14.6587]
[1646971271453,6.0,81.869,81.809,14.72869179]
[1646971271655,6.0,81.869,81.81,48.8558]
[1646971271853,6.0,81.869,81.81,75.67388073]
[1646971272254,6.0,81.869,81.811,28.891558]
[1646971273254,6.0,81.869,81.83,14.6571]
[1646971273656,6.0,81.869,81.811,2.07347727]
[1646971273855,12.87,81.869,81.811,2.07347727]
[1646971274255,6.109,81.876,81.812,73.35]
[1646971274557,24.9199,81.877,81.813,10.35513374]
[1646971274854,24.9199,81.877,81.814,29.8625603]
[1646971275055,24.9199,81.877,81.815,6.0]
[1646971275259,24.9199,81.877,81.84,14.6553]
[1646971275482,6.0,81.876,81.84,14.6553]
[1646971275678,24.9199,81.877,81.84,14.6553]
[1646971276483,24.9199,81.877,81.83,14.6569]
[1646971276680,6.0,81.876,81.831,6.0]
[1646971276881,6.0,81.876,81.83,14.6569]
[1646971279783,6.0,81.876,81.83,13.6569]
[1646971280587,24.9199,81.877,81.83,13.6569]
[1646971280588,6.0,81.875,81.83,13.6569]
[1646971280787,6.0,81.876,81.83,13.6569]
[1646971280986,6.0,81.875,81.83,13.6569]
[1646971281191,6.0,81.876,81.83,13.6569]
[1646971281789,6.0,81.876,81.82,14.6585]
[1646971281987,6.107,81.875,81.82,14.6585]
[1646971282191,6.0,81.874,81.82,14.6585]
[1646971282792,6.0,81.875,81.821,3.04447957]
[1646971282989,6.0,81.875,81.83,14.657]
[1646971283191,6.107,81.874,81.83,14.657]
[1646971283389,6.0,81.873,81.83,14.657]
[1646971283589,6.107,81.872,81.83,14.657]
[1646971283889,6.0,81.871,81.83,14.657]
[1646971284091,6.107,81.87,81.83,14.657]
[1646971284493,6.0,81.869,81.83,14.657]
[1646971284693,6.107,81.876,81.83,14.657]
[1646971284893,6.0,81.875,81.83,14.657]
[1646971285093,6.107,81.874,81.83,14.657]
[1646971285295,6.107,81.876,81.84,14.655]
[1646971285494,24.9199,81.877,81.84,14.655]
[1646971285696,6.0,81.876,81.84,14.655]
[1646971285893,24.9199,81.877,81.84,14.655]
[1646971286293,6.0,81.876,81.84,14.655]
[1646971286692,24.9199,81.877,81.84,14.655]
[1646971286894,6.0,81.876,81.84,14.655]
[1646971287294,24.9199,81.877,81.84,14.655]
[1646971287695,6.0,81.876,81.84,14.655]
[1646971287895,24.9199,81.877,81.84,14.655]
[1646971288297,6.0,81.876,81.84,14.655]
[1646971288696,24.9199,81.877,81.84,14.655]
[1646971288897,6.0,81.876,81.84,14.655]
[1646971289297,24.9199,81.877,81.84,14.655]
[1646971289700,6.0,81.876,81.83,14.6569]
[1646971289899,24.9199,81.877,81.83,14.6569]
[1646971290100,6.0,81.876,81.83,14.6569]
[1646971291904,6.0,81.876,81.82,48.85]
[1646971291905,6.0,81.876,81.84,14.6552]
[1646971292102,24.9199,81.877,81.84,14.6552]
[1646971292304,6.0,81.876,81.84,14.6552]
[1646971292503,24.9199,81.877,81.84,14.6552]
[1646971292701,6.0,81.876,81.84,14.6552]
[1646971292901,24.9199,81.877,81.84,14.6552]
[1646971293404,6.0,81.876,81.84,14.6552]
[1646971293601,24.9199,81.877,81.84,14.6552]
[1646971293800,6.0,81.876,81.84,14.6552]
[1646971294001,24.9199,81.877,81.83,14.6569]
[1646971294201,6.0,81.876,81.83,14.6569]
[1646971294403,24.9199,81.877,81.83,14.6569]
[1646971294803,6.0,81.876,81.83,14.6569]
[1646971295004,24.9199,81.877,81.83,14.6569]
[1646971295203,6.0,81.876,81.83,14.6569]
[1646971295405,24.9199,81.877,81.83,14.6569]
[1646971296013,6.0,81.876,81.83,14.6569]
[1646971296210,24.9199,81.877,81.83,14.6569]
[1646971296410,6.0,81.876,81.831,9.80762136]
[1646971296610,6.0,81.875,81.831,9.80762136]
[1646971296810,6.0,81.876,81.831,9.80762136]
[1646971297014,6.0,81.875,81.831,9.80762136]
[1646971297210,6.0,81.876,81.831,9.80762136]
[1646971297410,24.9199,81.877,81.831,9.80762136]
[1646971297615,6.0,81.876,81.831,9.80762136]
[1646971298615,18.3244,81.87,81.831,9.80762136]
[1646971298813,18.3244,81.87,81.82,14.6588]
[1646971298814,6.107,81.869,81.82,14.6588]
[1646971299013,14.54,81.86,81.806,23.2399]
[1646971299214,14.54,81.86,81.821,9.81812193]
[1646971299416,122.2,81.858,81.821,9.81812193]
[1646971299712,6.0,81.857,81.807,9.81812193]
[1646971299914,6.11,81.856,81.778,130.40399096]
[1646971300114,6.0,81.855,81.778,130.40399096]
[1646971300317,6.111,81.854,81.779,15.82451194]
[1646971300518,14.54,81.85,81.779,15.82451194]
[1646971300719,12.111,81.849,81.8,14.6625]
[1646971301122,12.111,81.849,81.801,9.82451194]
[1646971302237,14.54,81.85,81.801,9.82451194]
[1646971302437,23.9817,81.857,81.82,14.6588]
[1646971302638,23.9817,81.857,81.808,2.26051306]
[1646971302838,23.9817,81.857,81.82,48.8489]
[1646971303248,23.9817,81.857,81.821,9.81340729]
[1646971303443,23.9817,81.857,81.83,14.657]
[1646971312954,23.9817,81.857,81.831,9.8327659]
[1646971313757,23.9817,81.857,81.809,3.04447957]
[1646971313959,128.2,81.856,81.753,24.7291]
[1646971314155,14.54,81.85,81.765,3.04447957]
[1646971314355,12.11,81.849,81.78,14.6649]
[1646971314558,12.11,81.849,81.771,16.00399096]
[1646971314755,12.11,81.849,81.779,2.35750439]
[1646971314956,12.11,81.849,81.779,5.40198396]
[1646971315155,12.11,81.849,81.78,23.9642]
[1646971315357,12.11,81.849,81.781,6.0]
[1646971316261,12.11,81.849,81.8,14.6622]
[1646971316463,12.11,81.849,81.781,6.0]
[1646971317061,12.11,81.849,81.78,75.88257957]
[1646971317460,12.11,81.849,81.781,6.0]
[1646971317859,12.11,81.849,81.79,14.6638]
[1646971317860,18.3314,81.84,81.79,14.6638]
[1646971318059,32.8714,81.84,81.781,6.0]
[1646971318262,29.6451,81.839,81.781,6.0]
[1646971318661,6.111,81.838,81.78,3.04447957]
[1646971318865,58.3635637,81.836,81.78,3.04447957]
[1646971319061,18.3335,81.83,81.779,15.04349388]
[1646971319263,18.3335,81.83,81.761,3.04447957]
[1646971319264,14.54,81.82,81.761,3.04447957]
[1646971319563,14.54,81.82,81.735,61.05]
[1646971319564,12.112,81.819,81.735,61.05]
[1646971319762,35.7571,81.819,81.753,15.04005874]
[1646971319962,35.7571,81.819,81.754,6.0]
[1646971319963,54.06643649,81.818,81.754,6.0]
[1646971320162,54.06643649,81.818,81.753,15.04005874]
[1646971320163,12.113,81.817,81.753,15.04005874]
[1646971320389,122.2,81.816,81.753,15.04005874]
[1646971320562,12.113,81.815,81.735,24.05571111]
[1646971320762,14.54,81.8,81.735,24.05571111]
[1646971320963,86.89823114,81.799,81.736,2.54794529]
[1646971321577,86.89823114,81.799,81.737,6.0]
[1646971322267,86.89823114,81.799,81.75,14.6713]
[1646971322567,80.78423114,81.799,81.751,6.0]
[1646971324674,74.78423114,81.799,81.76,14.6691]
[1646971324876,74.78423114,81.799,81.751,6.0]
[1646971325175,74.78423114,81.799,81.741,6.0]
[1646971325577,74.78423114,81.799,81.751,3.04447957]
[1646971325775,74.78423114,81.799,81.77,14.6674]
[1646971326379,74.78423114,81.799,81.742,3.04447957]
[1646971326579,74.78423114,81.799,81.743,6.0]
[1646971326978,74.78423114,81.799,81.76,16.5026]
[1646971327178,74.78423114,81.799,81.743,6.0]
[1646971327379,74.78423114,81.799,81.739,6.0]
[1646971327992,6.0,81.798,81.739,6.0]
[1646971328191,74.78423114,81.799,81.75,16.5045]
[1646971328391,74.78423114,81.799,81.751,6.0]
[1646971328792,6.0,81.798,81.751,6.0]
[1646971328994,6.0,81.798,81.739,6.0]
[1646971330195,6.0,81.798,81.74,16.5069]
[1646971330399,6.0,81.798,81.741,6.0]
[1646971330995,6.114,81.797,81.741,6.0]
[1646971331195,18.3422,81.79,81.741,6.0]
[1646971331397,32.8822,81.79,81.741,6.0]
[1646971331708,24.2696,81.789,81.739,6.0]
[1646971331995,6.0,81.788,81.732,0.61316164]
[1646971332194,24.2696,81.789,81.732,0.61316164]
[1646971332398,24.2696,81.789,81.732,24.66887275]
[1646971332594,24.2696,81.789,81.733,6.0]
[1646971333096,24.2696,81.789,81.74,55.0077]
[1646971333295,24.2696,81.789,81.76,16.5023]
[1646971334096,24.2696,81.789,81.74,55.0077]
[1646971334300,24.2696,81.789,81.741,6.0]
[1646971334896,24.2696,81.789,81.741,8.4550341]
[1646971335097,24.2696,81.789,81.75,16.5044]
[1646971335297,24.2696,81.789,81.751,6.0]
[1646971339308,24.2696,81.789,81.741,6.0]
[1646971341311,24.2696,81.789,81.75,16.5049]
[1646971341610,24.2696,81.789,81.751,6.0]
[1646971348624,24.2696,81.789,81.741,6.0]
[1646971348823,24.2696,81.789,81.735,6.0]
[1646971350628,6.0,81.788,81.735,6.0]
[1646971350929,24.2696,81.789,81.735,6.0]
[1646971351128,6.115,81.788,81.735,6.0]
[1646971351328,6.115,81.788,81.724,6.0]
[1646971351729,6.115,81.788,81.73,16.509]
[1646971351932,6.115,81.788,81.731,6.0]
[1646971352530,6.0,81.787,81.731,6.0]
[1646971352732,67.79816424,81.786,81.731,6.0]
[1646971352945,18.3447,81.78,81.692,3.04447957]
[1646971353132,14.54,81.77,81.704,14.95060129]
[1646971353331,6.115,81.769,81.695,24.969]
[1646971353536,128.2,81.768,81.677,4.21856423]
[1646971353733,128.2,81.768,81.672,6.35647076]
[1646971353931,122.2,81.766,81.679,18.1229]
[1646971354152,122.2,81.764,81.68,16.5191]
[1646971354353,14.54,81.75,81.68,16.5191]
[1646971354556,18.3551,81.74,81.68,16.5191]
[1646971354757,14.54,81.73,81.68,16.5191]
[1646971354954,24.0605,81.729,81.681,6.0]
[1646971355355,54.66744986,81.728,81.681,6.0]
[1646971356355,6.0,81.727,81.681,6.0]
[1646971356757,54.66744986,81.728,81.681,6.0]
[1646971357957,6.0,81.727,81.681,6.0]
[1646971358158,54.66744986,81.728,81.681,6.0]
[1646971358560,6.0,81.727,81.681,6.0]
[1646971359059,6.0,81.727,81.69,16.5174]
[1646971359266,6.0,81.727,81.691,6.0]
[1646971359861,54.66744986,81.728,81.68,6.0]
[1646971360261,54.66744986,81.728,81.68,22.5179]
[1646971360963,6.0,81.727,81.68,22.5179]
[1646971361162,54.66744986,81.728,81.68,22.5179]
[1646971361562,24.0605,81.729,81.715,0.00387869]
[1646971361761,12.118,81.728,81.715,0.00387869]
[1646971363163,24.0605,81.729,81.715,0.00387869]
[1646971364866,6.0,81.728,81.715,0.00387869]
[1646971366168,24.0605,81.729,81.715,0.00387869]
[1646971366575,14.54,81.75,81.715,0.00387869]
[1646971366768,23.351,81.756,81.715,0.00387869]
[1646971366970,6.117,81.755,81.715,0.00387869]
[1646971367273,63.43309386,81.755,81.715,0.00387869]
[1646971367470,6.0,81.754,81.715,0.00387869]
[1646971367672,6.117,81.753,81.715,0.00387869]
[1646971367873,14.54,81.75,81.715,0.00387869]
[1646971368073,6.117,81.749,81.715,0.00387869]
[1646971368372,14.54,81.75,81.715,0.00387869]
[1646971368869,6.0,81.749,81.715,0.00387869]
[1646971369272,6.117,81.748,81.715,0.00387869]
[1646971369470,18.3538,81.74,81.715,0.00387869]
[1646971369769,14.54,81.73,81.715,0.00387869]
[1646971369976,23.3118,81.729,81.715,0.00387869]
[1646971371475,14.54,81.73,81.715,0.00387869]
[1646971372273,57.08072897,81.742,81.715,0.00387869]
[1646971372475,14.54,81.75,81.715,0.00387869]
[1646971373273,6.0,81.749,81.715,0.00387869]
[1646971373473,29.6321,81.748,81.715,0.00387869]
[1646971373674,23.6321,81.748,81.715,0.00387869]
[1646971374977,12.117,81.747,81.715,0.00387869]
[1646971377990,122.2,81.739,81.715,0.00387869]
[1646971378190,14.54,81.73,81.715,0.00387869]
[1646971378391,6.0,81.729,81.715,0.00387869]
[1646971378592,12.118,81.729,81.715,0.00387869]
[1646971378990,22.8367,81.728,81.715,0.00387869]
[1646971379290,6.0,81.727,81.715,0.00387869]
[1646971380091,128.2,81.727,81.715,0.00387869]
[1646971380292,6.118,81.726,81.715,0.00387869]
[1646971380506,6.0,81.725,81.715,0.00387869]
[1646971380703,9.15019997,81.724,81.715,0.00387869]
[1646971380903,6.0,81.723,81.715,0.00387869]
[1646971381103,6.118,81.722,81.715,0.00387869]
[1646971381304,6.0,81.721,81.715,0.00387869]
[1646971381508,122.2,81.719,81.715,0.00387869]
[1646971381704,12.118,81.718,81.715,0.00387869]
[1646971381903,35.4508,81.718,81.715,0.00387869]
[1646971383506,122.2,81.717,81.715,0.00387869]
[1646971383706,134.318,81.716,81.715,0.00387869]
[1646971386908,140.388,81.716,81.715,0.00387869]
[1646971387916,134.318,81.716,81.715,0.00387869]
[1646971391317,12.118,81.716,81.715,0.00387869]
[1646971393116,134.318,81.716,81.715,0.00387869]
[1646971395122,12.118,81.716,81.715,0.00387869]
[1646971396823,137.36247957,81.716,81.715,0.00387869]
[1646971397023,162.9550275,81.716,81.715,0.00387869]
[1646971397223,40.7550275,81.716,81.715,0.00387869]
[1646971398324,162.9550275,81.716,81.715,0.00387869]
[1646971405327,122.2,81.709,81.652,6.118]
[1646971405527,35.0,81.715,81.652,6.118]
[1646971405528,181.8,81.68,81.652,6.118]
[1646971405729,14.54,81.67,81.604,23.0716]
[1646971405931,6.0,81.669,81.611,6.0]
[1646971406532,23.1802,81.668,81.611,6.0]
[1646971406733,6.0,81.667,81.611,6.0]
[1646971406934,54.90662788,81.666,81.611,6.0]
[1646971407133,6.0,81.665,81.611,6.0]
[1646971409540,6.0,81.665,81.612,8.89053541]
[1646971409740,6.0,81.665,81.613,6.0]
[1646971410341,6.0,81.665,81.614,8.89641396]
[1646971410641,6.0,81.665,81.615,6.0]
[1646971411342,6.0,81.665,81.611,6.0]
[1646971411544,1.0,81.665,81.611,6.0]
[1646971411748,54.90662788,81.666,81.611,6.0]
[1646971411945,54.90662788,81.666,81.612,8.89423336]
[1646971412146,54.90662788,81.666,81.613,6.0]
[1646971412448,54.90662788,81.666,81.62,18.369]
[1646971412947,14.54,81.67,81.62,18.369]
[1646971413350,24.0399,81.698,81.621,40.60156685]
[1646971413548,6.0,81.697,81.64,18.3567]
[1646971413749,12.122,81.709,81.641,6.0]
[1646971413948,14.54,81.7,81.641,6.0]
[1646971414165,6.0,81.699,81.642,8.89918907]
[1646971414362,6.0,81.699,81.643,6.0]
[1646971414563,14.54,81.7,81.643,9.04447957]
[1646971414764,14.54,81.7,81.643,6.0]
[1646971414962,14.54,81.7,81.66,18.3586]
[1646971415163,14.54,81.7,81.66,24.6086]
[1646971415963,6.0,81.699,81.66,24.6086]
[1646971416364,6.0,81.699,81.66,18.3586]
[1646971417964,14.54,81.7,81.661,6.0]
[1646971418168,14.54,81.7,81.67,18.3569]
[1646971418964,14.54,81.7,81.671,6.0]
[1646971419166,122.2,81.749,81.66,67.5039]
[1646971419368,14.54,81.73,81.661,12.12]
[1646971419567,14.54,81.75,81.672,35.07005735]
[1646971419766,38.5545,81.76,81.674,4.17181385]
[1646971419964,38.5545,81.76,81.675,12.118]
[1646971420165,49.80219739,81.759,81.71,61.1452]
[1646971420366,30.7193,81.783,81.72,18.346]
[1646971420564,14.54,81.78,81.721,6.0]